[Event "Late-Titled-Tuesday-Blitz-June-04-2024"]
[Site "Chess.com"]
[Date "2024.06.04"]
[Round "8"]
[White "Heinza9"]
[Black "Arteler"]
[Result "1-0"]
[WhiteElo "2340"]
[BlackElo "2218"]
[TimeControl "180+1"]
[EndTime "15:24:47 PDT"]
[Termination "Heinza9 won by resignation"]

1. c4 {[%clk 0:03:00.9]} 1... Nf6 {[%clk 0:02:57.3]} 2. Nc3 {[%clk 0:03:00.7]}
2... e6 {[%clk 0:02:46]} 3. e4 {[%clk 0:03:00.4]} 3... d5 {[%clk 0:02:43.5]} 4.
e5 {[%clk 0:03:00.4]} 4... Nfd7 {[%clk 0:02:27.6]} 5. cxd5 {[%clk 0:03:00.1]}
5... exd5 {[%clk 0:02:26.5]} 6. d4 {[%clk 0:02:56.6]} 6... c6 {[%clk 0:02:23.7]}
7. Nf3 {[%clk 0:02:55.3]} 7... Nb6 {[%clk 0:02:23.5]} 8. Bd3 {[%clk 0:02:54.2]}
8... Bb4 {[%clk 0:02:23.6]} 9. h4 {[%clk 0:02:52.6]} 9... Bg4 {[%clk 0:02:14.4]}
10. h5 {[%clk 0:02:52.4]} 10... h6 {[%clk 0:02:10.6]} 11. a3 {[%clk 0:02:45.4]}
11... Be7 {[%clk 0:02:04.6]} 12. Bf4 {[%clk 0:02:36.7]} 12... Bg5 {[%clk
0:02:02.7]} 13. Qd2 {[%clk 0:02:32.1]} 13... Bxf4 {[%clk 0:01:59.2]} 14. Qxf4
{[%clk 0:02:33]} 14... Bxf3 {[%clk 0:01:56.7]} 15. Qxf3 {[%clk 0:02:32.1]} 15...
Qg5 {[%clk 0:01:51]} 16. Rh3 {[%clk 0:02:27.3]} 16... N8d7 {[%clk 0:01:36]} 17.
Rg3 {[%clk 0:02:27.3]} 17... Qh4 {[%clk 0:01:34.8]} 18. O-O-O {[%clk 0:02:26.7]}
18... Qxd4 {[%clk 0:01:14.6]} 19. e6 {[%clk 0:02:25.8]} 19... Nf6 {[%clk
0:01:05.3]} 20. exf7+ {[%clk 0:02:25.2]} 20... Kd8 {[%clk 0:01:04.3]} 21. Rxg7
{[%clk 0:02:16.3]} 21... Qe5 {[%clk 0:00:35.4]} 22. Rg6 {[%clk 0:01:49.9]} 22...
Nbd7 {[%clk 0:00:31.4]} 23. Bf5 {[%clk 0:01:43.7]} 23... Kc7 {[%clk 0:00:29.8]}
24. Bxd7 {[%clk 0:01:43.3]} 24... Nxd7 {[%clk 0:00:30.7]} 25. Rd2 {[%clk
0:01:30.1]} 25... Qe7 {[%clk 0:00:13.9]} 26. Qf4+ {[%clk 0:01:26.5]} 26... Qd6
{[%clk 0:00:12.2]} 27. Rxd6 {[%clk 0:01:25.8]} 1-0

[Event "Late-Titled-Tuesday-Blitz-June-04-2024"]
[Site "Chess.com"]
[Date "2024.06.04"]
[Round "8"]
[White "djano"]
[Black "JoakimVonAnd"]
[Result "0-1"]
[WhiteElo "2622"]
[BlackElo "2782"]
[TimeControl "180+1"]
[EndTime "15:24:50 PDT"]
[Termination "JoakimVonAnd won by checkmate"]

1. e4 {[%clk 0:03:00.9]} 1... c6 {[%clk 0:02:59.6]} 2. d4 {[%clk 0:02:59.7]}
2... d5 {[%clk 0:03:00.5]} 3. exd5 {[%clk 0:03:00.6]} 3... cxd5 {[%clk
0:03:00.8]} 4. Bd3 {[%clk 0:03:01.1]} 4... Nc6 {[%clk 0:03:00.7]} 5. c3 {[%clk
0:03:01.3]} 5... Qc7 {[%clk 0:02:59]} 6. Ne2 {[%clk 0:03:00]} 6... e6 {[%clk
0:02:58.7]} 7. Bf4 {[%clk 0:02:52.7]} 7... Bd6 {[%clk 0:02:58.2]} 8. Bxd6 {[%clk
0:02:52.7]} 8... Qxd6 {[%clk 0:02:59.1]} 9. O-O {[%clk 0:02:52.9]} 9... Nge7
{[%clk 0:02:59.5]} 10. Nd2 {[%clk 0:02:50.7]} 10... O-O {[%clk 0:02:59.7]} 11.
Nf3 {[%clk 0:02:51]} 11... f6 {[%clk 0:02:59.1]} 12. c4 {[%clk 0:02:49.8]} 12...
b6 {[%clk 0:02:58.4]} 13. Rc1 {[%clk 0:02:47.9]} 13... Bb7 {[%clk 0:02:58.4]}
14. Qc2 {[%clk 0:02:41.6]} 14... h6 {[%clk 0:02:55]} 15. a3 {[%clk 0:02:40.5]}
15... Rac8 {[%clk 0:02:48.5]} 16. Qd2 {[%clk 0:02:38.2]} 16... dxc4 {[%clk
0:02:44.9]} 17. Bxc4 {[%clk 0:02:39.1]} 17... Na5 {[%clk 0:02:43]} 18. Ba2
{[%clk 0:02:26.4]} 18... Bxf3 {[%clk 0:02:42.7]} 19. gxf3 {[%clk 0:02:27.3]}
19... Nd5 {[%clk 0:02:40.6]} 20. Ng3 {[%clk 0:02:17.8]} 20... Qf4 {[%clk
0:02:28.4]} 21. Qd1 {[%clk 0:01:37.7]} 21... Nc6 {[%clk 0:02:15]} 22. Re1 {[%clk
0:01:35.1]} 22... Nxd4 {[%clk 0:02:13.7]} 23. Rxc8 {[%clk 0:01:25.9]} 23... Rxc8
{[%clk 0:02:13.8]} 24. Kg2 {[%clk 0:01:17.1]} 24... Qh4 {[%clk 0:01:24.7]} 25.
Re4 {[%clk 0:00:57.8]} 25... Nf4+ {[%clk 0:01:23.5]} 26. Kh1 {[%clk 0:00:58.4]}
26... Nxf3 {[%clk 0:01:14]} 27. Nf1 {[%clk 0:00:30.6]} 27... Qxf2 {[%clk
0:01:06.3]} 28. Rxf4 {[%clk 0:00:23.6]} 28... Qg1# {[%clk 0:01:05.5]} 0-1

[Event "Late-Titled-Tuesday-Blitz-June-04-2024"]
[Site "Chess.com"]
[Date "2024.06.04"]
[Round "8"]
[White "Zhigalko_Sergei"]
[Black "Polish_fighter3000"]
[Result "0-1"]
[WhiteElo "2909"]
[BlackElo "3072"]
[TimeControl "180+1"]
[EndTime "15:24:57 PDT"]
[Termination "Polish_fighter3000 won on time"]

1. e4 {[%clk 0:03:00.9]} 1... e6 {[%clk 0:03:00.7]} 2. d4 {[%clk 0:03:01]} 2...
d5 {[%clk 0:03:01.4]} 3. e5 {[%clk 0:03:01.6]} 3... c5 {[%clk 0:03:01.9]} 4. c3
{[%clk 0:03:02.2]} 4... Qb6 {[%clk 0:03:01]} 5. Nf3 {[%clk 0:03:02.6]} 5... Nc6
{[%clk 0:03:01.3]} 6. a3 {[%clk 0:03:00.2]} 6... c4 {[%clk 0:03:01]} 7. Nbd2
{[%clk 0:03:00.2]} 7... Na5 {[%clk 0:03:01]} 8. Be2 {[%clk 0:03:00.8]} 8... Bd7
{[%clk 0:03:01]} 9. O-O {[%clk 0:03:01.3]} 9... Ne7 {[%clk 0:03:01.1]} 10. h4
{[%clk 0:03:00.8]} 10... Qc7 {[%clk 0:02:57.3]} 11. h5 {[%clk 0:03:00]} 11... f6
{[%clk 0:02:55.1]} 12. Qe1 {[%clk 0:02:49.6]} 12... Nec6 {[%clk 0:02:52.4]} 13.
Bd1 {[%clk 0:02:47.2]} 13... O-O-O {[%clk 0:02:50.2]} 14. Bc2 {[%clk 0:02:44.5]}
14... Kb8 {[%clk 0:02:44.4]} 15. Qe2 {[%clk 0:02:37.2]} 15... fxe5 {[%clk
0:02:26]} 16. Nxe5 {[%clk 0:02:37.5]} 16... Nxe5 {[%clk 0:02:26.3]} 17. dxe5
{[%clk 0:02:38.4]} 17... g6 {[%clk 0:02:26.3]} 18. Re1 {[%clk 0:02:15.8]} 18...
Rg8 {[%clk 0:02:21.9]} 19. hxg6 {[%clk 0:02:12.3]} 19... hxg6 {[%clk 0:02:21.5]}
20. Qg4 {[%clk 0:02:10.2]} 20... g5 {[%clk 0:02:18]} 21. Nf3 {[%clk 0:02:07.9]}
21... Bc5 {[%clk 0:02:16.4]} 22. Be3 {[%clk 0:01:48.5]} 22... Rdf8 {[%clk
0:02:15.3]} 23. Rad1 {[%clk 0:01:20.5]} 23... Bxe3 {[%clk 0:02:12.6]} 24. Rxe3
{[%clk 0:01:21.4]} 24... Nc6 {[%clk 0:02:10.7]} 25. Qg3 {[%clk 0:00:57.4]} 25...
Qb6 {[%clk 0:01:56.7]} 26. Rb1 {[%clk 0:00:54.3]} 26... g4 {[%clk 0:01:56.7]}
27. Nh2 {[%clk 0:00:47.9]} 27... d4 {[%clk 0:01:56.6]} 28. cxd4 {[%clk
0:00:47.5]} 28... Nxd4 {[%clk 0:01:57.5]} 29. Be4 {[%clk 0:00:28.1]} 29... Nf3+
{[%clk 0:01:53.8]} 30. Kh1 {[%clk 0:00:21.7]} 30... Nd2 {[%clk 0:01:53.6]} 31.
Rd1 {[%clk 0:00:19.2]} 31... Qxb2 {[%clk 0:01:53.7]} 32. Nxg4 {[%clk 0:00:09.1]}
32... Ba4 {[%clk 0:01:49.8]} 33. Rde1 {[%clk 0:00:06.3]} 33... c3 {[%clk
0:01:44.8]} 34. f3 {[%clk 0:00:02.9]} 34... c2 {[%clk 0:01:44.3]} 35. Bxb7
{[%clk 0:00:01.4]} 35... Kxb7 {[%clk 0:01:40.5]} 0-1

[Event "Late-Titled-Tuesday-Blitz-June-04-2024"]
[Site "Chess.com"]
[Date "2024.06.04"]
[Round "8"]
[White "Alex_Banzea"]
[Black "Bond_7_7_7"]
[Result "0-1"]
[WhiteElo "2591"]
[BlackElo "2462"]
[TimeControl "180+1"]
[EndTime "15:25:06 PDT"]
[Termination "Bond_7_7_7 won on time"]

1. d4 {[%clk 0:03:00.9]} 1... d5 {[%clk 0:02:59.5]} 2. Nc3 {[%clk 0:02:59.4]}
2... Nf6 {[%clk 0:02:59]} 3. Bf4 {[%clk 0:02:59.8]} 3... a6 {[%clk 0:02:59.6]}
4. e3 {[%clk 0:03:00.3]} 4... h6 {[%clk 0:03:00]} 5. Bd3 {[%clk 0:02:37.6]} 5...
c5 {[%clk 0:02:58.4]} 6. dxc5 {[%clk 0:02:27.9]} 6... e6 {[%clk 0:02:54.2]} 7.
b4 {[%clk 0:02:23.7]} 7... b6 {[%clk 0:02:51.5]} 8. Nf3 {[%clk 0:01:55.3]} 8...
bxc5 {[%clk 0:02:50.4]} 9. bxc5 {[%clk 0:01:56.2]} 9... Qa5 {[%clk 0:02:47.8]}
10. Qd2 {[%clk 0:01:53.3]} 10... Bxc5 {[%clk 0:02:44.7]} 11. Ne2 {[%clk
0:01:47.5]} 11... Qxd2+ {[%clk 0:02:40.3]} 12. Nxd2 {[%clk 0:01:46.7]} 12... Nc6
{[%clk 0:02:35.4]} 13. Nb3 {[%clk 0:01:34.1]} 13... Be7 {[%clk 0:02:30.5]} 14.
Ned4 {[%clk 0:01:32.3]} 14... Nxd4 {[%clk 0:02:28.7]} 15. Nxd4 {[%clk
0:01:19.4]} 15... Nh5 {[%clk 0:02:24.6]} 16. Rb1 {[%clk 0:01:09.9]} 16... Nxf4
{[%clk 0:02:15.4]} 17. exf4 {[%clk 0:01:10.8]} 17... g5 {[%clk 0:02:12.5]} 18.
fxg5 {[%clk 0:00:59.7]} 18... hxg5 {[%clk 0:02:12]} 19. O-O {[%clk 0:00:59.9]}
19... e5 {[%clk 0:02:05.6]} 20. Nf5 {[%clk 0:00:46]} 20... e4 {[%clk 0:02:04.9]}
21. Nxe7 {[%clk 0:00:41.8]} 21... Kxe7 {[%clk 0:02:02.1]} 22. Be2 {[%clk
0:00:42.5]} 22... Ra7 {[%clk 0:01:36]} 23. Rb6 {[%clk 0:00:42]} 23... Be6 {[%clk
0:01:32.9]} 24. a4 {[%clk 0:00:30.5]} 24... Rc8 {[%clk 0:01:28.9]} 25. Bxa6
{[%clk 0:00:20.5]} 25... Rxc2 {[%clk 0:01:28.1]} 26. Ra1 {[%clk 0:00:13.1]}
26... d4 {[%clk 0:01:27.1]} 27. Rb7+ {[%clk 0:00:04.8]} 27... Rxb7 {[%clk
0:01:26.2]} 28. Bxb7 {[%clk 0:00:05.7]} 28... f5 {[%clk 0:01:24.6]} 29. a5
{[%clk 0:00:05.1]} 29... d3 {[%clk 0:01:23.6]} 30. a6 {[%clk 0:00:01.2]} 30...
d2 {[%clk 0:01:23.6]} 31. Rd1 {[%clk 0:00:01.2]} 31... Rc1 {[%clk 0:01:22.7]}
0-1

[Event "Late-Titled-Tuesday-Blitz-June-04-2024"]
[Site "Chess.com"]
[Date "2024.06.04"]
[Round "8"]
[White "egnfanclub"]
[Black "Heydarli77"]
[Result "0-1"]
[WhiteElo "2353"]
[BlackElo "2463"]
[TimeControl "180+1"]
[EndTime "15:25:31 PDT"]
[Termination "Heydarli77 won by resignation"]

1. e4 {[%clk 0:03:00.9]} 1... c5 {[%clk 0:02:57.6]} 2. Nc3 {[%clk 0:03:00.5]}
2... e6 {[%clk 0:02:57.6]} 3. f4 {[%clk 0:03:01.4]} 3... Nc6 {[%clk 0:02:54.3]}
4. Nf3 {[%clk 0:03:01.8]} 4... d6 {[%clk 0:02:54.4]} 5. Bc4 {[%clk 0:02:56.6]}
5... Nge7 {[%clk 0:02:53.9]} 6. d3 {[%clk 0:02:57]} 6... g6 {[%clk 0:02:53.3]}
7. O-O {[%clk 0:02:56]} 7... Bg7 {[%clk 0:02:53.4]} 8. Qe1 {[%clk 0:02:53.1]}
8... O-O {[%clk 0:02:53]} 9. Bb3 {[%clk 0:02:53.1]} 9... Na5 {[%clk 0:02:50.8]}
10. f5 {[%clk 0:02:53.2]} 10... Nxb3 {[%clk 0:02:49.2]} 11. axb3 {[%clk
0:02:54.1]} 11... exf5 {[%clk 0:02:48.4]} 12. Bg5 {[%clk 0:02:40.7]} 12... fxe4
{[%clk 0:02:44]} 13. Nd5 {[%clk 0:02:06.2]} 13... f6 {[%clk 0:02:41.5]} 14. Qxe4
{[%clk 0:02:06.2]} 14... Nf5 {[%clk 0:02:28.2]} 15. Bd2 {[%clk 0:01:55.6]} 15...
Re8 {[%clk 0:02:26.6]} 16. Qc4 {[%clk 0:01:45.7]} 16... Be6 {[%clk 0:02:24.9]}
17. g4 {[%clk 0:01:32.5]} 17... b5 {[%clk 0:02:10.8]} 18. Qxb5 {[%clk 0:01:17]}
18... Bxd5 {[%clk 0:02:06.8]} 19. gxf5 {[%clk 0:01:16.9]} 19... gxf5 {[%clk
0:02:05.3]} 20. Nh4 {[%clk 0:01:00.8]} 20... Re2 {[%clk 0:01:58]} 21. Rf2 {[%clk
0:00:55]} 21... Rxf2 {[%clk 0:01:52.9]} 22. Kxf2 {[%clk 0:00:55.9]} 22... Be6
{[%clk 0:01:36.8]} 23. Re1 {[%clk 0:00:50.6]} 23... Bd7 {[%clk 0:01:27.4]} 24.
Qc4+ {[%clk 0:00:44.2]} 24... Kh8 {[%clk 0:01:27.2]} 25. Qd5 {[%clk 0:00:37.3]}
25... Qf8 {[%clk 0:01:26.2]} 26. Nxf5 {[%clk 0:00:34.4]} 26... Bxf5 {[%clk
0:01:24.6]} 27. Qxf5 {[%clk 0:00:34.5]} 27... Bh6 {[%clk 0:01:19.3]} 28. Bc3
{[%clk 0:00:33.5]} 28... Bg7 {[%clk 0:01:17.3]} 29. Re6 {[%clk 0:00:32.6]} 29...
Re8 {[%clk 0:01:14.3]} 30. Qe4 {[%clk 0:00:06.6]} 30... Rxe6 {[%clk 0:01:01.4]}
31. Qxe6 {[%clk 0:00:07.5]} 31... f5 {[%clk 0:00:58.7]} 32. Bxg7+ {[%clk
0:00:05.3]} 32... Kxg7 {[%clk 0:00:59.4]} 33. Qxd6 {[%clk 0:00:05.9]} 33... Qxd6
{[%clk 0:00:59.1]} 0-1

[Event "Late-Titled-Tuesday-Blitz-June-04-2024"]
[Site "Chess.com"]
[Date "2024.06.04"]
[Round "8"]
[White "Nf3c5"]
[Black "IlanSchnaider"]
[Result "0-1"]
[WhiteElo "2619"]
[BlackElo "2787"]
[TimeControl "180+1"]
[EndTime "15:25:32 PDT"]
[Termination "IlanSchnaider won on time"]

1. Nf3 {[%clk 0:03:00.9]} 1... c5 {[%clk 0:02:59.8]} 2. b3 {[%clk 0:03:01.1]}
2... Nf6 {[%clk 0:02:57.1]} 3. Bb2 {[%clk 0:03:01.1]} 3... Nc6 {[%clk
0:02:57.5]} 4. c4 {[%clk 0:02:57.4]} 4... e6 {[%clk 0:02:57.3]} 5. e3 {[%clk
0:02:55.9]} 5... Be7 {[%clk 0:02:56.7]} 6. Be2 {[%clk 0:02:53.4]} 6... O-O
{[%clk 0:02:57]} 7. O-O {[%clk 0:02:53.6]} 7... d5 {[%clk 0:02:57.6]} 8. cxd5
{[%clk 0:02:53.5]} 8... Nxd5 {[%clk 0:02:57.2]} 9. d4 {[%clk 0:02:52.2]} 9...
Bf6 {[%clk 0:02:57]} 10. Qd2 {[%clk 0:02:16.6]} 10... cxd4 {[%clk 0:02:53.3]}
11. Nxd4 {[%clk 0:02:15.6]} 11... Nxd4 {[%clk 0:02:43.9]} 12. Bxd4 {[%clk
0:02:15.9]} 12... Nf4 {[%clk 0:02:41.3]} 13. Bf3 {[%clk 0:02:04.4]} 13... Bxd4
{[%clk 0:02:37.3]} 14. exd4 {[%clk 0:02:04.5]} 14... Ng6 {[%clk 0:02:28.9]} 15.
Nc3 {[%clk 0:02:01.8]} 15... Qb6 {[%clk 0:02:24.2]} 16. Rfd1 {[%clk 0:01:49.2]}
16... Rd8 {[%clk 0:02:21.6]} 17. Rac1 {[%clk 0:01:42.2]} 17... Bd7 {[%clk
0:02:18.4]} 18. Qg5 {[%clk 0:01:20.8]} 18... Bc6 {[%clk 0:02:14.7]} 19. d5
{[%clk 0:01:15.7]} 19... h6 {[%clk 0:02:05.9]} 20. Qg3 {[%clk 0:01:13.7]} 20...
exd5 {[%clk 0:02:04.4]} 21. Bxd5 {[%clk 0:01:14.6]} 21... Bxd5 {[%clk
0:02:01.7]} 22. Nxd5 {[%clk 0:01:14.2]} 22... Qa5 {[%clk 0:01:56.8]} 23. Qf3
{[%clk 0:00:59]} 23... Qxa2 {[%clk 0:01:53.5]} 24. Rc7 {[%clk 0:00:57.9]} 24...
Ne5 {[%clk 0:01:45.8]} 25. Qc3 {[%clk 0:00:23.7]} 25... Nc6 {[%clk 0:01:33.1]}
26. h4 {[%clk 0:00:18.8]} 26... Qa3 {[%clk 0:01:25.2]} 27. Rd3 {[%clk
0:00:14.5]} 27... Qf8 {[%clk 0:00:51.3]} 28. Rg3 {[%clk 0:00:14.3]} 28... Rxd5
{[%clk 0:00:50.3]} 0-1

[Event "Late-Titled-Tuesday-Blitz-June-04-2024"]
[Site "Chess.com"]
[Date "2024.06.04"]
[Round "8"]
[White "GMG"]
[Black "RantomOpening"]
[Result "1-0"]
[WhiteElo "2701"]
[BlackElo "2558"]
[TimeControl "180+1"]
[EndTime "15:25:33 PDT"]
[Termination "GMG won by resignation"]

1. d4 {[%clk 0:03:00.1]} 1... d5 {[%clk 0:02:59.3]} 2. c4 {[%clk 0:03:00.1]}
2... e6 {[%clk 0:02:59.3]} 3. Nf3 {[%clk 0:03:00.3]} 3... a6 {[%clk 0:02:58.6]}
4. e3 {[%clk 0:02:56.8]} 4... Nf6 {[%clk 0:02:55.4]} 5. Nc3 {[%clk 0:02:56.8]}
5... c5 {[%clk 0:02:55.2]} 6. cxd5 {[%clk 0:02:53.5]} 6... exd5 {[%clk
0:02:54.9]} 7. Be2 {[%clk 0:02:53.9]} 7... Nc6 {[%clk 0:02:51.7]} 8. O-O {[%clk
0:02:52.9]} 8... Be7 {[%clk 0:02:50.9]} 9. dxc5 {[%clk 0:02:52.4]} 9... Bxc5
{[%clk 0:02:50.8]} 10. b3 {[%clk 0:02:53]} 10... d4 {[%clk 0:02:49.5]} 11. Na4
{[%clk 0:02:52]} 11... Ba7 {[%clk 0:02:49.3]} 12. exd4 {[%clk 0:02:37.4]} 12...
Nxd4 {[%clk 0:02:48.3]} 13. Ba3 {[%clk 0:02:32.8]} 13... Be6 {[%clk 0:02:03.7]}
14. Nc5 {[%clk 0:02:17.6]} 14... Bxc5 {[%clk 0:02:00.1]} 15. Bxc5 {[%clk
0:02:18.5]} 15... Nxe2+ {[%clk 0:01:58.7]} 16. Qxe2 {[%clk 0:02:16.8]} 16... Qd5
{[%clk 0:01:51.4]} 17. Rac1 {[%clk 0:02:10]} 17... Qe4 {[%clk 0:01:19.6]} 18.
Qb2 {[%clk 0:02:02.7]} 18... h6 {[%clk 0:00:59.3]} 19. Rfe1 {[%clk 0:01:53.7]}
19... Qd5 {[%clk 0:00:53]} 20. Red1 {[%clk 0:01:45]} 20... Qh5 {[%clk
0:00:46.4]} 21. Qd2 {[%clk 0:01:39.2]} 21... Nd7 {[%clk 0:00:36.1]} 22. Ba3
{[%clk 0:01:34.1]} 22... Qf5 {[%clk 0:00:08.6]} 23. Qd6 {[%clk 0:01:26]} 23...
Qf6 {[%clk 0:00:09]} 24. Nd2 {[%clk 0:01:18.7]} 24... Rd8 {[%clk 0:00:05.9]} 25.
Ne4 {[%clk 0:01:16.3]} 25... Qh4 {[%clk 0:00:03.6]} 26. g3 {[%clk 0:01:14.1]}
26... Nb8 {[%clk 0:00:01.7]} 27. gxh4 {[%clk 0:01:11.1]} 27... Rxd6 {[%clk
0:00:01.5]} 28. Nxd6+ {[%clk 0:01:11.9]} 28... Ke7 {[%clk 0:00:01.3]} 29. Ne4+
{[%clk 0:01:08.2]} 29... Ke8 {[%clk 0:00:01.3]} 30. Rc7 {[%clk 0:01:08]} 30...
Nc6 {[%clk 0:00:01.4]} 31. Rxb7 {[%clk 0:01:02.5]} 1-0

[Event "Late-Titled-Tuesday-Blitz-June-04-2024"]
[Site "Chess.com"]
[Date "2024.06.04"]
[Round "8"]
[White "frederiksvane"]
[Black "Lennis93"]
[Result "1-0"]
[WhiteElo "2900"]
[BlackElo "2735"]
[TimeControl "180+1"]
[EndTime "15:25:36 PDT"]
[Termination "frederiksvane won by resignation"]

1. e4 {[%clk 0:03:00.9]} 1... e6 {[%clk 0:02:57.5]} 2. d4 {[%clk 0:03:01]} 2...
d5 {[%clk 0:02:58.4]} 3. Nd2 {[%clk 0:03:00.7]} 3... a6 {[%clk 0:02:53.2]} 4.
Ngf3 {[%clk 0:02:56.1]} 4... Nf6 {[%clk 0:02:52.9]} 5. e5 {[%clk 0:02:55.8]}
5... Nfd7 {[%clk 0:02:53.5]} 6. c3 {[%clk 0:02:56.3]} 6... c5 {[%clk 0:02:54.3]}
7. Bd3 {[%clk 0:02:56.8]} 7... Nc6 {[%clk 0:02:55]} 8. O-O {[%clk 0:02:57.2]}
8... g5 {[%clk 0:02:50.9]} 9. Nb1 {[%clk 0:02:35.3]} 9... Be7 {[%clk 0:02:36.7]}
10. Be3 {[%clk 0:02:33.1]} 10... g4 {[%clk 0:02:33.9]} 11. Ne1 {[%clk
0:02:32.9]} 11... h5 {[%clk 0:02:26.2]} 12. f3 {[%clk 0:02:32.8]} 12... Qb6
{[%clk 0:02:22.3]} 13. Rf2 {[%clk 0:02:21.1]} 13... cxd4 {[%clk 0:02:21.8]} 14.
cxd4 {[%clk 0:02:21.4]} 14... Ndxe5 {[%clk 0:02:21.7]} 15. Nc3 {[%clk
0:02:13.9]} 15... gxf3 {[%clk 0:02:13.4]} 16. gxf3 {[%clk 0:01:38]} 16... Bh4
{[%clk 0:01:58.3]} 17. Re2 {[%clk 0:01:37]} 17... Nxd3 {[%clk 0:01:01]} 18. Nxd3
{[%clk 0:01:35.3]} 18... Qd8 {[%clk 0:00:17.3]} 19. Kh1 {[%clk 0:01:34.7]} 19...
Ne7 {[%clk 0:00:13.3]} 20. Bf4 {[%clk 0:01:33.7]} 20... Nf5 {[%clk 0:00:12.9]}
21. Ne5 {[%clk 0:01:30.6]} 21... Bd7 {[%clk 0:00:12.5]} 22. Nxd5 {[%clk
0:01:27.9]} 22... Kf8 {[%clk 0:00:08.8]} 23. Nb6 {[%clk 0:01:18.9]} 23... Bb5
{[%clk 0:00:07.7]} 24. Nxa8 {[%clk 0:01:17.9]} 24... Bxe2 {[%clk 0:00:07.1]} 25.
Qxe2 {[%clk 0:01:18.5]} 25... Qxa8 {[%clk 0:00:07.4]} 26. Rc1 {[%clk 0:01:16.4]}
26... Qd8 {[%clk 0:00:05.3]} 27. Rc7 {[%clk 0:01:15.9]} 27... Rh7 {[%clk
0:00:01.7]} 28. Qc2 {[%clk 0:00:56.3]} 28... Qxd4 {[%clk 0:00:02]} 29. Nd7+
{[%clk 0:00:52.7]} 29... Kg7 {[%clk 0:00:02]} 30. Be5+ {[%clk 0:00:53]} 30... f6
{[%clk 0:00:01]} 31. Bxd4 {[%clk 0:00:52.5]} 31... Nxd4 {[%clk 0:00:01.3]} 32.
Ne5+ {[%clk 0:00:51.8]} 1-0

[Event "Late-Titled-Tuesday-Blitz-June-04-2024"]
[Site "Chess.com"]
[Date "2024.06.04"]
[Round "8"]
[White "Squirlolz"]
[Black "CrushingKings"]
[Result "0-1"]
[WhiteElo "2505"]
[BlackElo "2620"]
[TimeControl "180+1"]
[EndTime "15:25:36 PDT"]
[Termination "CrushingKings won by resignation"]

1. Nf3 {[%clk 0:02:36.6]} 1... g6 {[%clk 0:03:00.9]} 2. g3 {[%clk 0:02:37.3]}
2... Bg7 {[%clk 0:02:58.4]} 3. Bg2 {[%clk 0:02:38.2]} 3... Nf6 {[%clk
0:02:59.3]} 4. O-O {[%clk 0:02:39.1]} 4... O-O {[%clk 0:03:00]} 5. c4 {[%clk
0:02:38.4]} 5... d6 {[%clk 0:03:00.9]} 6. Nc3 {[%clk 0:02:37.8]} 6... Nbd7
{[%clk 0:03:01.8]} 7. Rb1 {[%clk 0:02:36.8]} 7... c5 {[%clk 0:03:02.7]} 8. b4
{[%clk 0:02:34.8]} 8... Rb8 {[%clk 0:03:03.6]} 9. bxc5 {[%clk 0:02:31.4]} 9...
dxc5 {[%clk 0:03:04.5]} 10. d3 {[%clk 0:02:29.8]} 10... b6 {[%clk 0:03:04.8]}
11. Bf4 {[%clk 0:02:29.1]} 11... Rb7 {[%clk 0:03:03.5]} 12. Ne1 {[%clk
0:02:19.2]} 12... Nh5 {[%clk 0:02:59.9]} 13. Bxb7 {[%clk 0:02:19]} 13... Nxf4
{[%clk 0:03:00.1]} 14. Bxc8 {[%clk 0:02:18.6]} 14... Qxc8 {[%clk 0:02:59.3]} 15.
Nd5 {[%clk 0:02:10.3]} 15... Nxd5 {[%clk 0:02:56.3]} 16. cxd5 {[%clk 0:02:11.2]}
16... Nf6 {[%clk 0:02:56.2]} 17. e4 {[%clk 0:02:09.6]} 17... e6 {[%clk
0:02:56.9]} 18. d6 {[%clk 0:02:05.3]} 18... Ne8 {[%clk 0:02:54.8]} 19. Qa4
{[%clk 0:02:00.3]} 19... Qb7 {[%clk 0:02:42.3]} 20. d7 {[%clk 0:01:58.9]} 20...
Nf6 {[%clk 0:02:41.2]} 21. f4 {[%clk 0:01:44.2]} 21... Rd8 {[%clk 0:02:02.6]}
22. e5 {[%clk 0:01:42.4]} 22... Nd5 {[%clk 0:02:02.5]} 23. Qe4 {[%clk
0:01:34.3]} 23... Qxd7 {[%clk 0:02:00.6]} 24. Rc1 {[%clk 0:01:29.9]} 24... Nb4
{[%clk 0:01:59.1]} 25. Rd1 {[%clk 0:01:24.7]} 25... Nxa2 {[%clk 0:01:57.4]} 26.
Nf3 {[%clk 0:01:24.8]} 26... Nc3 {[%clk 0:01:57.4]} 27. Qc4 {[%clk 0:01:24.6]}
27... Nxd1 {[%clk 0:01:57.5]} 28. Rxd1 {[%clk 0:01:25.5]} 28... Qd5 {[%clk
0:01:57.4]} 29. Qxd5 {[%clk 0:01:20.6]} 29... Rxd5 {[%clk 0:01:58]} 30. Ng5
{[%clk 0:01:20.7]} 30... c4 {[%clk 0:01:39.6]} 31. Kf2 {[%clk 0:01:20.7]} 31...
Rxd3 {[%clk 0:01:35.4]} 32. Rxd3 {[%clk 0:01:20.7]} 32... cxd3 {[%clk 0:01:36]}
33. Ke3 {[%clk 0:01:21.4]} 33... Bf8 {[%clk 0:01:30.1]} 34. Kxd3 {[%clk
0:01:21.4]} 34... Be7 {[%clk 0:01:25.7]} 35. Ne4 {[%clk 0:01:20.9]} 35... Kf8
{[%clk 0:01:26.1]} 36. Kc4 {[%clk 0:01:21.3]} 36... a6 {[%clk 0:01:26.2]} 37. h4
{[%clk 0:01:18.7]} 37... Ke8 {[%clk 0:01:25.3]} 38. g4 {[%clk 0:01:01.9]} 38...
Kd7 {[%clk 0:01:19.8]} 39. h5 {[%clk 0:00:57.7]} 39... Kc6 {[%clk 0:01:17.3]}
40. h6 {[%clk 0:00:53.9]} 40... b5+ {[%clk 0:01:17]} 41. Kd3 {[%clk 0:00:51.6]}
41... a5 {[%clk 0:01:16.2]} 42. f5 {[%clk 0:00:50.3]} 42... exf5 {[%clk
0:01:11.8]} 43. gxf5 {[%clk 0:00:51.2]} 43... gxf5 {[%clk 0:01:12.1]} 44. Ng3
{[%clk 0:00:51.5]} 44... Kd5 {[%clk 0:01:10.1]} 45. Nxf5 {[%clk 0:00:51.2]}
45... Bf8 {[%clk 0:01:10.3]} 46. Nd4 {[%clk 0:00:29.7]} 46... b4 {[%clk
0:01:06.3]} 47. Nf3 {[%clk 0:00:24.3]} 47... Bxh6 {[%clk 0:01:05]} 0-1